fUST/lending_fUST_20241227
["ID","MTS","AMOUNT","RATE_DAILY","PERIOD"]
[346792975,1735290648527,-500.0,9.928e-05,2]
[346792976,1735290648537,-345.08787981,9.928e-05,2]
[346792977,1735290648546,-500.0,9.928e-05,2]
[346792978,1735290648557,-500.0,9.928e-05,2]
[346792979,1735290648567,-500.0,9.928e-05,2]
[346792980,1735290648577,-500.0,9.928e-05,2]
[346792981,1735290648586,-680.05,9.928e-05,2]
[346792982,1735290648596,-500.0,9.928e-05,2]
[346792983,1735290648606,-500.0,9.928e-05,2]
[346792984,1735290648618,-289.82689427,9.928e-05,2]
[346792985,1735290648631,-500.0,9.928e-05,2]
[346792986,1735290648641,-6483.65562155,9.928e-05,2]
[346792987,1735290649143,-500.0,9.377e-05,2]
[346792988,1735290649154,-500.0,9.377e-05,2]
[346792989,1735290649164,-500.0,9.651e-05,2]
[346792990,1735290649175,-500.0,9.926e-05,2]
[346792991,1735290649185,-3073.51437845,9.928e-05,2]
[346792992,1735290649194,-500.0,9.929e-05,2]
[346792993,1735290649205,-3238.61174175,9.93e-05,2]
[346792994,1735290649217,-44.86825825,9.93e-05,2]
[346792995,1735290649227,-500.0,9.93e-05,2]
[346792996,1735290649237,-3141.23,9.932e-05,2]
[346792997,1735290649247,-394.0,0.00010086,2]
[346792998,1735290649257,-399.408,0.00010086,2]
[346792999,1735290649267,-3650.13374175,0.00010199,2]
[346793000,1735290649278,-230.79625825,0.00010199,2]
[346793001,1735290649287,-1389.42,0.00010199,2]
[346793002,1735290649297,-500.0,0.00010199,2]
[346793003,1735290649307,-500.0,0.00010199,2]
[346793004,1735290649317,-500.0,0.00010199,2]
[346793005,1735290649327,-858.95,0.00010199,2]
[346793006,1735290649337,-1236.02,0.00010199,2]
[346793007,1735290649346,-594.36,0.00010199,2]
[346793008,1735290649356,-500.0,0.00010199,2]
[346793009,1735290649368,-500.0,0.00010199,2]
[346793010,1735290649379,-500.0,0.00010199,2]
[346793011,1735290649388,-992.53,0.00010199,2]
[346793012,1735290649398,-500.0,0.00010199,2]
[346793013,1735290649411,-93.46079174,0.000102,2]
[346793014,1735290649442,-500.0,9.651e-05,2]
[346793015,1735290649452,-500.0,9.925e-05,2]
[346793016,1735290649461,-406.53920826,0.000102,2]
[346793017,1735290649470,-500.0,0.000102,2]
[346793018,1735290649481,-500.0,0.000102,2]
[346793019,1735290649491,-500.0,0.000102,2]
[346793020,1735290649501,-500.0,0.000102,2]
[346793021,1735290649511,-500.0,0.000102,2]
[346793022,1735290649521,-321.24881328,0.000102,2]
[346793023,1735290649531,-500.0,0.000102,2]
[346793024,1735290649540,-526.97,0.000102,2]
[346793025,1735290649550,-8827.89495512,0.000102,2]
[346793028,1735291016563,155.87684334,8.913e-05,2]
[346793029,1735291032487,155.87684334,8.913e-05,2]
[346793031,1735291236682,155.87684334,8.913e-05,2]
[346793032,1735291244896,155.87684334,8.913e-05,2]
[346793034,1735291281040,4848.8,8.98e-05,2]
[346793038,1735291635134,-437.27323515,9.186e-05,2]
[346793039,1735291635157,-300.0,9.371e-05,2]
[346793040,1735291635179,-388.26465785,9.372e-05,2]
[346793041,1735291635815,437.27323515,8.913e-05,2]
[346793056,1735291773346,-1387.48911761,9.278e-05,2]
[346793057,1735291773374,-57.08286296,9.353e-05,2]
[346793058,1735291773474,-235.17884736,9.353e-05,2]
[346793059,1735291773505,-538.38283383,9.372e-05,2]
[346793060,1735291798292,-955.82,9.372e-05,2]
[346793061,1735291798319,-500.0,9.372e-05,2]
[346793062,1735291798344,-33.11465381,9.372e-05,2]
[346793063,1735291798374,-466.88534619,9.372e-05,2]
[346793064,1735291798401,-285.51559659,9.372e-05,2]
[346793269,1735291838211,-300.0,9.371e-05,2]
[346793271,1735291838220,-500.0,9.371e-05,2]
[346793273,1735291838230,-500.0,9.371e-05,2]
[346793275,1735291838239,-563.34030308,9.371e-05,2]
[346793277,1735291838250,-500.0,9.371e-05,2]
[346793279,1735291838259,-275.48855468,9.371e-05,2]
[346793281,1735291838269,-214.48440341,9.372e-05,2]
[346793283,1735291838279,-501.26868918,9.372e-05,2]
[346793285,1735291838289,-500.0,9.372e-05,2]
[346793287,1735291838299,-4752.22,9.372e-05,2]
[346793289,1735291838309,-500.0,9.372e-05,2]
[346793291,1735291838319,-500.0,9.372e-05,2]
[346793293,1735291838329,-1575.81,9.372e-05,2]
[346793295,1735291838339,-500.0,9.372e-05,2]
[346793297,1735291838349,-1252.35,9.372e-05,2]
[346793299,1735291838359,-500.0,9.372e-05,2]
[346793301,1735291838369,-915.99,9.372e-05,2]
[346793303,1735291838379,-500.0,9.372e-05,2]
[346793305,1735291838388,-217.82369869,9.372e-05,2]
[346793308,1735291838398,-500.0,9.372e-05,2]
[346793309,1735291838407,-500.0,9.372e-05,2]
[346793311,1735291838417,-500.0,9.372e-05,2]
[346793313,1735291838430,-500.0,9.372e-05,2]
[346793315,1735291838439,-500.0,9.372e-05,2]
[346793317,1735291838449,-500.0,9.372e-05,2]
[346793319,1735291838459,-401.51280859,9.372e-05,2]
[346793321,1735291838469,-500.0,9.372e-05,2]
[346793323,1735291838479,-500.0,9.372e-05,2]
[346793325,1735291838488,-500.0,9.372e-05,2]
[346793327,1735291838498,-500.0,9.372e-05,2]
[346793329,1735291838507,-500.0,9.372e-05,2]
[346793331,1735291838518,-500.0,9.372e-05,2]
[346793333,1735291838527,-500.0,9.372e-05,2]
[346793335,1735291838537,-578.7532131,9.372e-05,2]
[346793337,1735291838547,-500.0,9.372e-05,2]
[346793339,1735291838557,-500.0,9.372e-05,2]
[346793361,1735291838765,-500.0,9.372e-05,2]
[346793363,1735291838775,-500.0,9.372e-05,2]
[346793364,1735291838786,-500.0,9.372e-05,2]
[346793365,1735291838798,-500.0,9.372e-05,2]
[346793366,1735291838807,-500.0,9.372e-05,2]
[346793367,1735291838817,-500.0,9.372e-05,2]
[346793368,1735291838827,-500.0,9.372e-05,2]
[346793369,1735291838836,-500.0,9.372e-05,2]
[346793370,1735291838848,-500.0,9.372e-05,2]
[346793371,1735291838857,-500.0,9.372e-05,2]
[346793372,1735291838867,-500.0,9.372e-05,2]
[346793373,1735291838877,-500.0,9.372e-05,2]
[346793374,1735291838887,-500.0,9.372e-05,2]
[346793375,1735291838897,-500.0,9.372e-05,2]
[346793376,1735291838906,-500.0,9.372e-05,2]
[346793377,1735291838915,-500.0,9.372e-05,2]
[346793378,1735291838927,-642.62090698,9.372e-05,2]
[346793379,1735291838938,-500.0,9.372e-05,2]
[346793380,1735291838949,-500.0,9.372e-05,2]
[346793381,1735291838959,-500.0,9.372e-05,2]
[346793382,1735291838968,-500.0,9.372e-05,2]
[346793383,1735291838977,-500.0,9.372e-05,2]
[346793384,1735291838986,-500.0,9.372e-05,2]
[346793385,1735291838995,-500.0,9.372e-05,2]
[346793386,1735291839005,-500.0,9.372e-05,2]
[346793387,1735291839014,-500.0,9.372e-05,2]
[346793388,1735291839023,-500.0,9.372e-05,2]
[346793389,1735291839033,-500.0,9.372e-05,2]
[346793390,1735291839042,-500.0,9.372e-05,2]
[346793391,1735291839051,-500.0,9.372e-05,2]
[346793392,1735291839061,-500.0,9.372e-05,2]
[346793393,1735291839070,-500.0,9.372e-05,2]
[346793394,1735291839079,-500.0,9.372e-05,2]
[346793395,1735291839090,-500.0,9.372e-05,2]
[346793396,1735291839099,-500.0,9.372e-05,2]
[346793397,1735291839108,-290.05242564,9.372e-05,2]
[346793398,1735291839134,-209.94757436,9.372e-05,2]
[346793399,1735291839143,-218.13242564,9.372e-05,2]
[346793400,1735291839154,-281.86757436,9.372e-05,2]
[346793401,1735291839163,-500.0,9.372e-05,2]
[346793402,1735291839172,-500.0,9.372e-05,2]
[346793403,1735291839183,-453.19480144,9.372e-05,2]
[346793404,1735291839192,-500.0,9.372e-05,2]
[346793405,1735291839202,-500.0,9.372e-05,2]
[346793406,1735291839211,-76.1071462,9.372e-05,2]
[346793664,1735291842776,-500.0,9.371e-05,2]
[346793667,1735291842787,-211.28081311,9.372e-05,2]
[346793777,1735291843653,-212.61204069,9.372e-05,2]
[346793779,1735291843663,-500.0,9.372e-05,2]
[346793781,1735291843672,-503.09759545,9.373e-05,2]
[346793783,1735291843684,-500.0,9.373e-05,2]
[346793785,1735291843693,-500.0,9.373e-05,2]
[346793787,1735291843702,-500.0,9.373e-05,2]
[346793789,1735291843711,-597.24781219,9.373e-05,2]
[346793791,1735291843720,-500.0,9.373e-05,2]
[346793793,1735291843729,-393.30579764,9.373e-05,2]
[346793795,1735291843741,-106.69420236,9.373e-05,2]
[346793797,1735291843751,-509.49779852,9.373e-05,2]
[346793799,1735291843760,-500.0,9.373e-05,2]
[346793801,1735291843770,-500.0,9.373e-05,2]
[346793803,1735291843779,-500.0,9.373e-05,2]
[346793805,1735291843790,-500.0,9.373e-05,2]
[346793807,1735291843801,-500.0,9.373e-05,2]
[346793809,1735291843811,-500.0,9.373e-05,2]
[346793811,1735291843820,-500.0,9.373e-05,2]
[346793813,1735291843830,-500.0,9.373e-05,2]
[346793815,1735291843839,-747.69,9.373e-05,2]
[346793817,1735291843848,-500.0,9.373e-05,2]
[346793819,1735291843858,-500.0,9.373e-05,2]
[346793821,1735291843869,-500.0,9.373e-05,2]
[346793823,1735291843878,-500.0,9.373e-05,2]
[346793825,1735291843888,-500.0,9.373e-05,2]
[346793827,1735291843897,-227.8361117,9.373e-05,2]
[346793829,1735291843906,-500.0,9.373e-05,2]
[346793831,1735291843916,-500.0,9.373e-05,2]
[346793833,1735291843925,-500.0,9.373e-05,2]
[346793835,1735291843936,-500.0,9.373e-05,2]
[346793837,1735291843946,-500.0,9.373e-05,2]
[346793839,1735291843955,-500.0,9.373e-05,2]
[346793841,1735291843964,-500.0,9.373e-05,2]
[346793843,1735291843973,-500.0,9.373e-05,2]
[346793845,1735291843984,-500.0,9.373e-05,2]
[346793847,1735291843993,-500.0,9.373e-05,2]
[346793849,1735291844002,-500.0,9.373e-05,2]
[346793851,1735291844011,-500.0,9.373e-05,2]
[346793853,1735291844021,-500.0,9.373e-05,2]
[346793855,1735291844030,-500.0,9.373e-05,2]
[346793857,1735291844040,-500.0,9.373e-05,2]
[346793859,1735291844050,-500.0,9.373e-05,2]
[346793861,1735291844059,-500.0,9.373e-05,2]
[346793863,1735291844068,-500.0,9.373e-05,2]
[346793865,1735291844078,-500.0,9.373e-05,2]
[346793867,1735291844087,-500.0,9.373e-05,2]
[346793869,1735291844096,-500.0,9.373e-05,2]
[346793871,1735291844106,-500.0,9.373e-05,2]
[346793873,1735291844116,-500.0,9.373e-05,2]
[346793875,1735291844125,-500.0,9.373e-05,2]
[346793877,1735291844134,-500.0,9.373e-05,2]
[346793879,1735291844143,-500.0,9.373e-05,2]
[346793881,1735291844152,-500.0,9.373e-05,2]
[346793883,1735291844163,-500.0,9.373e-05,2]
[346793885,1735291844172,-500.0,9.373e-05,2]
[346793887,1735291844185,-500.0,9.373e-05,2]
[346793889,1735291844195,-500.0,9.373e-05,2]
[346793891,1735291844205,-500.0,9.373e-05,2]
[346793893,1735291844215,-500.0,9.373e-05,2]
[346793895,1735291844224,-500.0,9.373e-05,2]
[346793897,1735291844233,-500.0,9.373e-05,2]
[346793899,1735291844243,-520.42628022,9.373e-05,2]
[346793901,1735291844252,-500.0,9.373e-05,2]
[346793903,1735291844261,-500.0,9.373e-05,2]
[346793906,1735291844272,-500.0,9.373e-05,2]
[346793908,1735291844281,-500.0,9.373e-05,2]
[346793910,1735291844290,-501.61024466,9.373e-05,2]
[346793912,1735291844300,-500.0,9.373e-05,2]
[346793914,1735291844309,-500.0,9.374e-05,2]
[346793916,1735291844319,-500.0,9.374e-05,2]
[346793918,1735291844328,-500.24104568,9.374e-05,2]
[346793920,1735291844337,-500.0,9.374e-05,2]
[346793922,1735291844347,-500.0,9.374e-05,2]
[346793924,1735291844356,-500.0,9.374e-05,2]
[346793926,1735291844365,-615.08943966,9.374e-05,2]
[346793928,1735291844376,-500.0,9.374e-05,2]
[346793930,1735291844385,-241.11727438,9.374e-05,2]
[346793932,1735291844395,-160.69660295,9.374e-05,2]
[346793934,1735291844404,-939.19,9.374e-05,2]
[346793936,1735291844414,-571.18,9.374e-05,2]
[346793938,1735291844423,-500.0,9.374e-05,2]
[346793940,1735291844436,-500.0,9.374e-05,2]
[346793942,1735291844445,-500.0,9.374e-05,2]
[346793944,1735291844454,-543.2916063,9.374e-05,2]
[346793946,1735291844464,-500.0,9.374e-05,2]
[346793948,1735291844473,-500.0,9.374e-05,2]
[346793950,1735291844483,-500.0,9.374e-05,2]
[346793952,1735291844492,-500.0,9.374e-05,2]
[346793954,1735291844501,-500.0,9.374e-05,2]
[346793956,1735291844511,-500.0,9.374e-05,2]
[346793958,1735291844520,-501.35,9.374e-05,2]
[346793960,1735291844529,-860.4,9.374e-05,2]
[346793962,1735291844538,-500.0,9.374e-05,2]
[346793964,1735291844548,-500.0,9.374e-05,2]
[346793966,1735291844557,-500.0,9.374e-05,2]
[346793968,1735291844567,-500.0,9.374e-05,2]
[346793970,1735291844576,-500.0,9.374e-05,2]
[346793972,1735291844585,-500.0,9.374e-05,2]
[346793974,1735291844595,-500.0,9.374e-05,2]
[346793976,1735291844604,-500.0,9.374e-05,2]
[346793978,1735291844613,-638.77,9.374e-05,2]
[346793980,1735291844623,-12382.17,9.374e-05,2]
[346793982,1735291844633,-611.06,9.374e-05,2]
[346793984,1735291844642,-500.0,9.374e-05,2]
[346793986,1735291844652,-640.11,9.374e-05,2]
[346793988,1735291844661,-500.0,9.374e-05,2]
[346793990,1735291844671,-500.0,9.374e-05,2]
[346793992,1735291844682,-500.0,9.374e-05,2]
[346793994,1735291844691,-502.05383504,9.374e-05,2]
[346793996,1735291844700,-500.0,9.374e-05,2]
[346793998,1735291844709,-500.0,9.374e-05,2]
[346794000,1735291844719,-190.95617535,9.374e-05,2]
[346794002,1735291844732,-313.10912901,9.374e-05,2]
[346794004,1735291844741,-570.17,9.374e-05,2]
[346794006,1735291844751,-500.0,9.374e-05,2]
[346794009,1735291844760,-500.0,9.374e-05,2]
[346794011,1735291844770,-500.0,9.374e-05,2]
[346794013,1735291844779,-500.0,9.374e-05,2]
[346794014,1735291844788,-498.40640724,9.374e-05,2]
[346794016,1735291844798,-120.55531955,9.374e-05,2]
[346794155,1735291846339,-500.0,9.371e-05,2]
[346794157,1735291846350,-124.7826615,9.371e-05,2]
[346794533,1735292073070,500.0,0.00020407,120]
[346794535,1735292172661,250.0,8.375e-05,2]
[346794537,1735292669478,13616.1925081,8.373e-05,2]
[346794538,1735292719165,1294.62,8.98e-05,2]
[346794540,1735292911992,-238.39177109,9.275e-05,2]
[346794541,1735292912019,-300.0,9.368e-05,2]
[346794542,1735292912046,-500.0,9.369e-05,2]
[346794543,1735292912072,-311.66599455,9.369e-05,2]
[346794544,1735292912111,-192.66981247,9.369e-05,2]
[346794545,1735292912137,-500.0,9.369e-05,2]
[346794546,1735292912164,-657.38795317,9.369e-05,2]
[346794547,1735292912204,-212.13748258,9.369e-05,2]
[346794548,1735292936979,-366.09456425,9.369e-05,2]
[346794549,1735292937004,-325.60260983,9.369e-05,2]
[346794550,1735292937041,-174.39739017,9.369e-05,2]
[346794551,1735292937066,-500.0,9.369e-05,2]
[346794552,1735292937092,-500.0,9.369e-05,2]
[346794553,1735292937117,-233.90543575,9.369e-05,2]
[346794554,1735292962004,-300.0,9.368e-05,2]
[346794555,1735292962030,-266.09456425,9.369e-05,2]
[346794556,1735292962057,-500.0,9.369e-05,2]
[346794557,1735292962083,-384.20826167,9.369e-05,2]
[346794558,1735292962120,-527.72173833,9.369e-05,2]
[346794559,1735292962147,-500.0,9.369e-05,2]
[346794560,1735292962173,-288.78941115,9.369e-05,2]
[346794562,1735292986900,-162.15,9.289e-05,2]
[346794563,1735292986930,-216.09989189,9.369e-05,2]
[346794564,1735292986959,-500.0,9.369e-05,2]
[346794565,1735292986989,-500.0,9.369e-05,2]
[346794566,1735292987018,-127.38921354,9.369e-05,2]
[346794567,1735292987052,-375.30629298,9.369e-05,2]
[346794568,1735292987080,-237.03442979,9.369e-05,2]
[346794590,1735293032564,-300.0,9.368e-05,2]
[346794592,1735293032574,-418.14107706,9.368e-05,2]
[346794594,1735293032585,-81.85892294,9.368e-05,2]
[346794596,1735293032595,-264.27376965,9.369e-05,2]
[346794598,1735293032604,-501.52885409,9.369e-05,2]
[346794600,1735293032614,-500.5417126,9.369e-05,2]
[346794602,1735293032623,-500.0,9.369e-05,2]
[346794604,1735293032632,-500.0,9.369e-05,2]
[346794606,1735293032642,-500.0,9.369e-05,2]
[346794608,1735293032651,-500.0,9.369e-05,2]
[346794610,1735293032660,-500.0,9.369e-05,2]
[346794612,1735293032670,-500.0,9.369e-05,2]
[346794614,1735293032680,-500.0,9.369e-05,2]
[346794616,1735293032690,-210.82711596,9.369e-05,2]
[346794618,1735293032699,-563.79710288,9.369e-05,2]
[346794620,1735293032708,-500.0,9.369e-05,2]
[346794622,1735293032719,-500.0,9.369e-05,2]
[346794624,1735293032728,-132.08020098,9.369e-05,2]
[346794695,1735293038417,-604.04368356,9.368e-05,2]
[346794697,1735293038426,-500.0,9.368e-05,2]
[346794699,1735293038437,-500.0,9.368e-05,2]
[346794701,1735293038447,-500.0,9.368e-05,2]
[346794703,1735293038456,-500.0,9.368e-05,2]
[346794705,1735293038465,-500.0,9.368e-05,2]
[346794707,1735293038475,-500.0,9.368e-05,2]
[346794709,1735293038484,-500.0,9.368e-05,2]
[346794711,1735293038494,-500.0,9.368e-05,2]
[346794713,1735293038503,-500.0,9.368e-05,2]
[346794715,1735293038513,-500.0,9.368e-05,2]
[346794717,1735293038522,-500.0,9.368e-05,2]
[346794719,1735293038532,-500.0,9.368e-05,2]
[346794721,1735293038542,-500.0,9.368e-05,2]
[346794723,1735293038551,-246.39116547,9.368e-05,2]
[346794725,1735293038560,-500.0,9.368e-05,2]
[346794727,1735293038570,-500.0,9.368e-05,2]
[346794729,1735293038579,-176.87192309,9.368e-05,2]
[346794731,1735293038589,-367.91979902,9.369e-05,2]
[346794733,1735293038599,-500.0,9.369e-05,2]
[346794735,1735293038608,-500.0,9.369e-05,2]
[346794737,1735293038617,-500.0,9.369e-05,2]
[346794739,1735293038627,-4616.72,9.369e-05,2]
[346794741,1735293038636,-500.0,9.369e-05,2]
[346794743,1735293038645,-500.0,9.369e-05,2]
[346794745,1735293038655,-500.0,9.369e-05,2]
[346794747,1735293038664,-500.0,9.369e-05,2]
[346794749,1735293038673,-500.0,9.369e-05,2]
[346794751,1735293038683,-153.98270125,9.369e-05,2]
[346794753,1735293038692,-500.0,9.369e-05,2]
[346794755,1735293038701,-1530.98,9.369e-05,2]
[346794757,1735293038711,-500.0,9.369e-05,2]
[346794759,1735293038722,-500.0,9.369e-05,2]
[346794761,1735293038731,-500.0,9.369e-05,2]
[346794763,1735293038741,-500.0,9.369e-05,2]
[346794765,1735293038750,-500.0,9.369e-05,2]
[346794767,1735293038760,-500.0,9.369e-05,2]
[346794769,1735293038769,-500.0,9.369e-05,2]
[346794771,1735293038779,-500.0,9.369e-05,2]
[346794773,1735293038788,-500.0,9.369e-05,2]
[346794775,1735293038797,-500.0,9.369e-05,2]
[346794777,1735293038807,-500.0,9.369e-05,2]
[346794779,1735293038816,-500.0,9.369e-05,2]
[346794781,1735293038826,-500.0,9.369e-05,2]
[346794783,1735293038835,-500.0,9.369e-05,2]
[346794785,1735293038845,-502.88727355,9.369e-05,2]
[346794788,1735293038854,-500.0,9.369e-05,2]
[346794790,1735293038864,-500.0,9.369e-05,2]
[346794792,1735293038873,-500.0,9.369e-05,2]
[346794794,1735293038882,-500.0,9.369e-05,2]
[346794796,1735293038892,-500.0,9.369e-05,2]
[346794798,1735293038902,-920.89,9.369e-05,2]
[346794800,1735293038911,-500.0,9.369e-05,2]
[346794802,1735293038920,-500.0,9.369e-05,2]
[346794804,1735293038930,-500.0,9.369e-05,2]
[346794806,1735293038939,-500.0,9.369e-05,2]
[346794808,1735293038948,-568.21,9.369e-05,2]
[346794810,1735293038957,-500.0,9.369e-05,2]
[346794812,1735293038966,-568.95792687,9.369e-05,2]
[346794813,1735293038976,-500.0,9.369e-05,2]
[346794816,1735293038985,-500.77980982,9.369e-05,2]
[346794818,1735293038994,-500.0,9.369e-05,2]
[346794819,1735293039005,-500.0,9.369e-05,2]
[346794821,1735293039013,-500.0,9.369e-05,2]
[346794823,1735293039022,-500.0,9.369e-05,2]
[346794825,1735293039030,-500.0,9.369e-05,2]
[346794827,1735293039039,-500.0,9.369e-05,2]
[346794830,1735293039047,-500.0,9.369e-05,2]
[346794832,1735293039055,-500.0,9.369e-05,2]
[346794834,1735293039062,-500.0,9.369e-05,2]
[346794836,1735293039071,-500.0,9.369e-05,2]
[346794838,1735293039077,-500.0,9.369e-05,2]
[346794840,1735293039086,-1184.14,9.369e-05,2]
[346794842,1735293039097,-500.0,9.369e-05,2]
[346794844,1735293039106,-500.0,9.369e-05,2]
[346794846,1735293039116,-500.0,9.369e-05,2]
[346794848,1735293039126,-510.62,9.369e-05,2]
[346794850,1735293039135,-501.01033589,9.369e-05,2]
[346794852,1735293039144,-500.0,9.369e-05,2]
[346794854,1735293039154,-500.0,9.369e-05,2]
[346794856,1735293039163,-500.0,9.369e-05,2]
[346794858,1735293039172,-500.0,9.369e-05,2]
[346794860,1735293039181,-884.65,9.369e-05,2]
[346794862,1735293039190,-873.94,9.369e-05,2]
[346794864,1735293039200,-500.0,9.369e-05,2]
[346794866,1735293039209,-500.0,9.37e-05,2]
[346794868,1735293039219,-501.54249789,9.37e-05,2]
[346794870,1735293039229,-500.0,9.37e-05,2]
[346794872,1735293039238,-502.27882223,9.37e-05,2]
[346794874,1735293039247,-500.0,9.37e-05,2]
[346794876,1735293039257,-500.0,9.37e-05,2]
[346794878,1735293039267,-500.0,9.37e-05,2]
[346794880,1735293039275,-500.0,9.37e-05,2]
[346794882,1735293039285,-518.69512104,9.37e-05,2]
[346794884,1735293039294,-500.0,9.37e-05,2]
[346794886,1735293039303,-500.0,9.37e-05,2]
[346794888,1735293039312,-500.0,9.37e-05,2]
[346794890,1735293039322,-500.0,9.37e-05,2]
[346794891,1735293039331,-500.0,9.37e-05,2]
[346794893,1735293039344,-500.0,9.37e-05,2]
[346794895,1735293039354,-716.54,9.37e-05,2]
[346794897,1735293039363,-500.0,9.37e-05,2]
[346794899,1735293039373,-500.0,9.37e-05,2]
[346794901,1735293039384,-500.0,9.37e-05,2]
[346794903,1735293039394,-500.0,9.37e-05,2]
[346794905,1735293039403,-500.0,9.37e-05,2]
[346794907,1735293039412,-500.0,9.37e-05,2]
[346794909,1735293039423,-501.75364168,9.37e-05,2]
[346794910,1735293039433,-533.47884634,9.37e-05,2]
[346794911,1735293039443,-500.0,9.37e-05,2]
[346794913,1735293039453,-500.0,9.37e-05,2]
[346794915,1735293039463,-500.0,9.37e-05,2]
[346794917,1735293039472,-113.31975893,9.37e-05,2]
[346794921,1735293039498,-94.72932442,9.37e-05,2]
[346794923,1735293039510,-500.0,9.37e-05,2]
[346794925,1735293039519,-500.0,9.37e-05,2]
[346794927,1735293039530,-500.0,9.37e-05,2]
[346794929,1735293039539,-500.0,9.37e-05,2]
[346794931,1735293039548,-500.0,9.37e-05,2]
[346794933,1735293039558,-500.0,9.37e-05,2]
[346794934,1735293039567,-500.0,9.37e-05,2]
[346794936,1735293039576,-500.0,9.37e-05,2]
[346794938,1735293039586,-500.0,9.37e-05,2]
[346794941,1735293039596,-500.0,9.37e-05,2]
[346794943,1735293039605,-500.0,9.37e-05,2]
[346794945,1735293039615,-500.0,9.37e-05,2]
[346794946,1735293039624,-500.0,9.37e-05,2]
[346794948,1735293039637,-500.0,9.37e-05,2]
[346794951,1735293039646,-500.0,9.37e-05,2]
[346794952,1735293039655,-500.0,9.37e-05,2]
[346794955,1735293039665,-12699.89,9.37e-05,2]
[346794957,1735293039674,-500.0,9.37e-05,2]
[346794959,1735293039684,-500.0,9.37e-05,2]
[346794960,1735293039693,-500.0,9.37e-05,2]
[346794963,1735293039703,-500.0,9.37e-05,2]
[346794964,1735293039712,-500.0,9.37e-05,2]
[346794966,1735293039721,-500.0,9.37e-05,2]
[346794968,1735293039731,-500.0,9.37e-05,2]
[346794970,1735293039740,-295.39832558,9.37e-05,2]
[346795582,1735293046587,-500.0,9.369e-05,2]
[346795584,1735293046597,-500.0,9.369e-05,2]
[346795586,1735293046607,-204.60167442,9.37e-05,2]
[346795588,1735293046616,-500.0,9.37e-05,2]
[346795590,1735293046626,-500.0,9.37e-05,2]
[346795592,1735293046635,-632.99,9.37e-05,2]
[346795594,1735293046645,-225.30154097,9.37e-05,2]
[346795596,1735293046654,-500.0,9.37e-05,2]
[346795598,1735293046663,-500.0,9.37e-05,2]
[346795600,1735293046673,-606.43,9.37e-05,2]
[346795602,1735293046683,-461.07350508,9.37e-05,2]
[346795871,1735293302635,737.0,0.00023,120]
[346795873,1735293422625,185.6284939,8.219e-05,2]
[346795874,1735293617960,7325.67200899,8.37e-05,2]
[346795875,1735293617989,11012.46202301,8.37e-05,2]
[346795876,1735293877709,500.0,0.00020404,120]
[346795877,1735293906923,166.79556433,8.913e-05,2]
[346795887,1735294088380,166.79556433,8.913e-05,2]
[346795888,1735294094573,-300.0,9.278e-05,2]
[346795889,1735294094598,-500.0,9.279e-05,2]
[346795890,1735294094623,-500.0,9.279e-05,2]
[346795891,1735294094647,-52.49203668,9.279e-05,2]
[346795892,1735294094687,-447.50796332,9.279e-05,2]
[346795893,1735294094711,-500.0,9.279e-05,2]
[346795894,1735294094735,-402.86235385,9.279e-05,2]
[346795895,1735294094759,-2.12171951,9.279e-05,2]
[346795896,1735294094800,-326.86958047,9.279e-05,2]
[346795897,1735294119558,-171.00870002,9.279e-05,2]
[346795898,1735294119585,-500.0,9.279e-05,2]
[346795899,1735294119612,-504.71317424,9.279e-05,2]
[346795900,1735294119639,-237.40723549,9.279e-05,2]
[346795901,1735294119674,-262.59276451,9.279e-05,2]
[346795902,1735294119701,-502.18078475,9.279e-05,2]
[346795903,1735294119729,-26.45253305,9.279e-05,2]
[346795906,1735294144978,-300.0,9.278e-05,2]
[346795907,1735294145007,-473.54746695,9.279e-05,2]
[346795908,1735294145034,-347.28108892,9.279e-05,2]